fUSD/lending_fUSD_20250809
["ID","MTS","AMOUNT","RATE_DAILY","PERIOD"]
[378144188,1754747446806,-888.0,0.00022823,3]
[378144190,1754747446815,-226.51009389,0.00023814,2]
[378144192,1754747446825,-250.0,0.00023814,2]
[378144194,1754747446835,-300.0,0.00023814,2]
[378144196,1754747446845,-300.0,0.00023814,2]
[378144198,1754747446854,-250.0,0.00023814,2]
[378144200,1754747446864,-300.0,0.00023814,2]
[378144202,1754747446874,-300.0,0.00023814,2]
[378144204,1754747446883,-250.0,0.00023814,2]
[378144206,1754747446892,-300.0,0.00023814,2]
[378144208,1754747446902,-300.0,0.00023814,2]
[378144210,1754747446911,-250.0,0.00023814,2]
[378144213,1754747446920,-300.0,0.00023814,2]
[378144216,1754747446930,-250.0,0.00023814,2]
[378144219,1754747446939,-250.0,0.00023814,2]
[378144222,1754747446949,-250.0,0.00023814,2]
[378144225,1754747446959,-250.0,0.00023814,2]
[378144228,1754747446968,-250.0,0.00023814,2]
[378144231,1754747446978,-250.0,0.00023814,2]
[378144234,1754747446987,-250.0,0.00023814,2]
[378144237,1754747446997,-250.0,0.00023814,2]
[378144240,1754747447009,-250.0,0.00023814,2]
[378144243,1754747447018,-250.0,0.00023814,2]
[378144246,1754747447028,-250.0,0.00023814,2]
[378144248,1754747447037,-500.0,0.00023835,2]
[378144250,1754747447047,-411.77477871,0.00023835,2]
[378144252,1754747447058,-277.0,0.000239,2]
[378144254,1754747447068,-150.0,0.00023963,2]
[378144256,1754747447079,-173.0,0.00024,4]
[378144258,1754747447088,-173.0,0.00024,5]
[378144260,1754747447098,-150.0,0.00024133,2]
[378144262,1754747447107,-1000.0,0.00024136,2]
[378144264,1754747447117,-2321.217,0.00024136,2]
[378144266,1754747447126,-162.35312859,0.00024136,2]
[378144268,1754747447135,-5000.0,0.00024136,2]
[378144270,1754747447144,-157.88430855,0.0002416,2]
[378144272,1754747447154,-185.38153755,0.0002416,2]
[378144273,1754747447164,-165.41028369,0.0002416,2]
[378144274,1754747447173,-629.46402,0.0002419,2]
[378144275,1754747447183,-7884.35385636,0.000242,2]
[378144276,1754747447192,-12252.8925964,0.000242,2]
[378144277,1754747447204,-4792.79788002,0.000242,2]
[378144278,1754747447233,-1530.16791244,0.000242,2]
[378145552,1754747483159,400.0,0.00024657,120]
[378145553,1754747483449,261.23888422,0.00024931,120]
[378145556,1754747599560,500.0,0.00025351,120]
[378145565,1754748084505,254.44,0.00017118,2]
[378145566,1754748148090,150.5,0.00026,120]
[378145567,1754748199606,467.218542,0.00025411,120]
[378145570,1754748216980,155.53,0.00013699,2]
[378145572,1754748269366,-363.0178,0.00018046,2]
[378145573,1754748269390,-1000.0,0.000185,3]
[378145574,1754748269416,-254.44,0.00018848,2]
[378145577,1754748529279,224.78956012,0.00026,120]
[378145580,1754748631629,-305.85,0.00020576,2]
[378145581,1754748631639,-302.8,0.00020576,2]
[378145582,1754748631649,-115.25165583,0.00020576,2]
[378145583,1754748631798,-336.74834417,0.00020576,2]
[378145584,1754748631808,-300.0,0.00020576,2]
[378145585,1754748631818,-1200.0,0.00020576,2]
[378145586,1754748631827,-302.22,0.00020576,2]
[378145587,1754748631836,-305.93,0.00020576,2]
[378145588,1754748631846,-305.41,0.00020577,2]
[378145589,1754748631855,-301.31,0.00020577,2]
[378145590,1754748631864,-304.91,0.00020577,2]
[378145591,1754748631874,-301.19,0.00020577,2]
[378145592,1754748631883,-300.23,0.00020577,2]
[378145593,1754748631893,-305.75,0.00020577,2]
[378145594,1754748631902,-304.39,0.00020577,2]
[378145595,1754748631912,-303.85,0.00020577,2]
[378145596,1754748631922,-300.32,0.00020577,2]
[378145597,1754748631932,-302.4,0.00020577,2]
[378145598,1754748631941,-304.27,0.00020577,2]
[378145599,1754748631951,-301.77,0.00020577,2]
[378145600,1754748631963,-300.79,0.00020577,2]
[378145601,1754748631972,-301.61,0.00020577,2]
[378145602,1754748631982,-303.52,0.00020577,2]
[378145603,1754748631992,-303.82,0.00020577,2]
[378145604,1754748632002,-303.3,0.00020577,2]
[378145605,1754748632012,-187.28127305,0.00020577,2]
[378145606,1754748632021,-818.39762348,0.00020577,2]
[378145607,1754748632039,-381.60237652,0.00020577,2]
[378145608,1754748632048,-8141.54308036,0.00020578,2]
[378145609,1754748632061,-1054.90957426,0.00020578,2]
[378145610,1754748632070,-300.24,0.00020578,2]
[378145611,1754748632079,-254.44,0.00020579,2]
[378145612,1754748632089,-305.09,0.00020628,2]
[378145613,1754748632098,-302.7,0.00020849,2]
[378145614,1754748632107,-200.0,0.00021,100]
[378145615,1754748632117,-308.89,0.0002133,2]
[378145616,1754748632126,-170.0,0.00021349,7]
[378145617,1754748632136,-507.0,0.00021389,2]
[378145618,1754748632146,-180.7,0.00021419,2]
[378145619,1754748632155,-150.0,0.00021505,2]
[378145620,1754748632165,-4913.61,0.00021564,2]
[378145621,1754748632175,-194.56,0.00021599,2]
[378145622,1754748632185,-210.71,0.00021623,2]
[378145623,1754748632195,-150.0,0.00021797,2]
[378145624,1754748632206,-221.55105959,0.00021797,2]
[378145625,1754748632215,-406.0,0.00021963,2]
[378145626,1754748632226,-465.0,0.00022,2]
[378145627,1754748632236,-1291.0,0.00022073,2]
[378145628,1754748632246,-464.0,0.00022082,2]
[378145629,1754748632255,-305.49,0.00022099,2]
[378145630,1754748632336,-305.84,0.00022127,2]
[378145631,1754748632345,-300.09,0.0002215,2]
[378145632,1754748632355,-303.87,0.0002215,2]
[378145633,1754748632364,-301.94,0.0002215,2]
[378145634,1754748632373,-60904.88,0.00022161,2]
[378145635,1754748632383,-250.0,0.00022188,2]
[378145636,1754748632392,-465.0,0.00022192,7]
[378145637,1754748632401,-214.8,0.000222,2]
[378145638,1754748632411,-2882.64,0.00022235,2]
[378145639,1754748632420,-254.44,0.00022309,2]
[378145640,1754748632428,-600.0,0.00022371,2]
[378145641,1754748632438,-322.79,0.00022371,2]
[378145642,1754748632447,-232.06,0.00022371,2]
[378145643,1754748632457,-308.89,0.00022396,2]
[378145644,1754748632467,-155.53,0.00022505,2]
[378145645,1754748632476,-2504.33,0.00022526,2]
[378145646,1754748632485,-473.27,0.0002256,2]
[378145647,1754748632494,-186.92,0.00022595,2]
[378145648,1754748632503,-362.51,0.00022644,2]
[378145649,1754748632512,-600.0,0.00022757,2]
[378145650,1754748632522,-500.0,0.00022757,2]
[378145651,1754748632531,-600.0,0.00022757,2]
[378145652,1754748632540,-600.0,0.00022757,2]
[378145653,1754748632550,-600.0,0.00022757,2]
[378145654,1754748632559,-600.0,0.00022757,2]
[378145655,1754748632568,-454.49259013,0.00022757,2]
[378145656,1754748632577,-151.0,0.00022757,2]
[378145657,1754748632586,-151.0,0.00022757,2]
[378145658,1754748632596,-151.0,0.00022757,2]
[378145659,1754748632606,-500.0,0.00022757,2]
[378145660,1754748632615,-500.0,0.00022757,2]
[378145661,1754748632624,-500.0,0.00022757,2]
[378145662,1754748632634,-500.0,0.00022757,2]
[378145663,1754748632644,-500.0,0.00022757,2]
[378145664,1754748632654,-500.0,0.00022757,2]
[378145665,1754748632666,-500.0,0.00022757,2]
[378145666,1754748632676,-500.0,0.00022757,2]
[378145667,1754748632686,-500.0,0.00022757,2]
[378145668,1754748632697,-500.0,0.00022757,2]
[378145669,1754748632707,-500.0,0.00022757,2]
[378145670,1754748632717,-500.0,0.00022757,2]
[378145671,1754748632728,-23900.0,0.00022771,2]
[378145672,1754748632738,-500.0,0.00022812,2]
[378145673,1754748632749,-279.2,0.00022884,2]
[378145674,1754748632759,-4322.47,0.00022962,2]
[378145675,1754748632768,-465.0,0.00023014,7]
[378145676,1754748632778,-1000.0,0.00023036,2]
[378145677,1754748632787,-5447.3695551,0.00023079,2]
[378145678,1754748632796,-162.20884533,0.00023086,2]
[378145679,1754748632805,-10097.91469882,0.00023179,2]
[378145680,1754748632822,-2342.047792,0.00023179,2]
[378145681,1754748632833,-506.84999978,0.00023179,2]
[378145682,1754748632845,-307.15204721,0.00023179,2]
[378145685,1754748636671,-301.98,0.00020576,2]
[378145686,1754748636681,-888.0,0.00021076,3]
[378145687,1754748636690,-15532.16171481,0.00023179,2]
[378145688,1754748636701,-11252.71787314,0.00023179,2]
[378145689,1754748636712,-1445.33016126,0.00023179,2]
[378145771,1754748637633,-888.0,0.00021076,3]
[378145773,1754748637642,-351.72618051,0.00023179,2]
[378145776,1754748637653,-2610.60960457,0.00023179,2]
[378145778,1754748637664,-5352.38986895,0.00023179,2]
[378145780,1754748637679,-3267.93368,0.00023179,2]
[378145782,1754748637689,-3672.8912466,0.00023179,2]
[378145785,1754748637700,-2157.96,0.00023179,2]
[378145787,1754748637711,-2165.263002,0.00023179,2]
[378145789,1754748637723,-2729.889764,0.00023179,2]
[378145791,1754748637734,-4808.96772,0.00023179,2]
[378145806,1754748637870,-998.04370749,0.00023179,2]
[378145996,1754748639770,-5591.27777919,0.00023179,2]
[378145998,1754748639784,-14901.51642011,0.00023179,2]
[378146001,1754748639800,-3250.45419276,0.00023179,2]
[378146197,1754748641841,-888.0,0.00023178,3]
[378146200,1754748641850,-25781.95869996,0.00023179,2]
[378146276,1754748642551,-1302.1418136,0.00023179,2]
[378146293,1754748642718,-13655.0000005,0.00023179,2]
[378146300,1754748642778,-2939.60585369,0.00023179,2]
[378146302,1754748642789,-12841.92512446,0.00023179,2]
[378146304,1754748642798,-2726.46356491,0.00023179,2]
[378146306,1754748642808,-600.0,0.00023179,2]
[378146308,1754748642817,-151.0,0.00023179,2]
[378146309,1754748642826,-382.61118982,0.00023179,2]
[378146315,1754748642890,-18.57992472,0.00023179,2]
[378146317,1754748642900,-397.42759228,0.00023179,2]
[378146319,1754748642911,-25.12590896,0.00023179,2]
[378146321,1754748642920,-151.0,0.00023179,2]
[378146323,1754748642930,-500.0,0.00023179,2]
[378146325,1754748642939,-500.0,0.00023179,2]
[378146328,1754748642948,-300.0,0.00023179,2]
[378146329,1754748642961,-160.0,0.00023179,2]
[378146332,1754748642970,-500.0,0.00023179,2]
[378146333,1754748642979,-300.0,0.00023179,2]
[378146336,1754748642988,-500.0,0.00023179,2]
[378146339,1754748642999,-300.0,0.00023179,2]
[378146342,1754748643008,-500.0,0.00023179,2]
[378146344,1754748643017,-500.0,0.00023179,2]
[378146347,1754748643026,-300.0,0.00023179,2]
[378146349,1754748643037,-300.0,0.00023179,2]
[378146351,1754748643046,-500.0,0.00023179,2]
[378146353,1754748643055,-500.0,0.00023179,2]
[378146355,1754748643064,-500.0,0.00023179,2]
[378146357,1754748643074,-500.0,0.00023179,2]
[378146359,1754748643083,-250.0,0.00023179,2]
[378146361,1754748643094,-300.0,0.00023179,2]
[378146363,1754748643104,-500.0,0.00023179,2]
[378146365,1754748643114,-250.0,0.00023179,2]
[378146368,1754748643123,-386.73507275,0.00023179,2]
[378146371,1754748643132,-500.0,0.00023179,2]
[378146374,1754748643142,-300.0,0.00023179,2]
[378146377,1754748643152,-250.0,0.00023179,2]
[378146380,1754748643161,-151.0,0.00023179,2]
[378146383,1754748643171,-300.0,0.00023179,2]
[378146386,1754748643180,-250.0,0.00023179,2]
[378146388,1754748643190,-300.0,0.00023179,2]
[378146390,1754748643199,-250.0,0.00023179,2]
[378146392,1754748643208,-500.0,0.00023179,2]
[378146394,1754748643218,-300.0,0.00023179,2]
[378146396,1754748643227,-250.0,0.00023179,2]
[378146398,1754748643236,-553.10776478,0.00023179,2]
[378146400,1754748643246,-289.0886794,0.00023179,2]
[378146402,1754748643255,-250.0,0.00023179,2]
[378146404,1754748643264,-250.0,0.00023179,2]
[378146406,1754748643274,-239.84119403,0.00023179,2]
[378146408,1754748643284,-250.0,0.00023179,2]
[378146410,1754748643293,-500.0,0.00023179,2]
[378146412,1754748643303,-250.0,0.00023179,2]
[378146414,1754748643312,-250.0,0.00023179,2]
[378146416,1754748643323,-250.0,0.00023179,2]
[378146418,1754748643330,-250.0,0.00023179,2]
[378146420,1754748643339,-250.0,0.00023179,2]
[378146422,1754748643349,-250.0,0.00023179,2]
[378146424,1754748643359,-151.0,0.00023179,2]
[378146426,1754748643369,-250.0,0.00023179,2]
[378146428,1754748643378,-250.0,0.00023179,2]
[378146430,1754748643387,-250.0,0.00023179,2]
[378146432,1754748643396,-250.0,0.00023179,2]
[378146434,1754748643406,-250.0,0.00023179,2]
[378146436,1754748643415,-250.0,0.00023179,2]
[378146438,1754748643424,-250.0,0.00023179,2]
[378146440,1754748643433,-176.21945025,0.00023179,2]
[378146442,1754748643443,-500.0,0.00023179,2]
[378146444,1754748643452,-500.0,0.00023179,2]
[378146446,1754748643462,-500.0,0.00023179,2]
[378146448,1754748643471,-500.0,0.00023179,2]
[378146450,1754748643480,-500.0,0.00023179,2]
[378146452,1754748643491,-500.0,0.00023179,2]
[378146454,1754748643500,-500.0,0.00023179,2]
[378146456,1754748643509,-500.0,0.00023179,2]
[378146458,1754748643519,-500.0,0.00023179,2]
[378146460,1754748643529,-500.0,0.00023179,2]
[378146462,1754748643539,-284.52706361,0.00023179,2]
[378146464,1754748643547,-500.0,0.00023179,2]
[378146466,1754748643556,-500.0,0.00023179,2]
[378146468,1754748643565,-300.0,0.00023179,2]
[378146470,1754748643575,-300.0,0.00023179,2]
[378146472,1754748643586,-201.93286097,0.00023179,2]
[378146474,1754748643597,-300.0,0.00023179,2]
[378146476,1754748643607,-300.0,0.00023179,2]
[378146478,1754748643615,-300.0,0.00023179,2]
[378146480,1754748643627,-300.0,0.00023179,2]
[378146482,1754748643637,-300.0,0.00023179,2]
[378146484,1754748643646,-300.0,0.00023179,2]
[378146486,1754748643655,-300.0,0.00023179,2]
[378146489,1754748643664,-300.0,0.00023179,2]
[378146490,1754748643673,-300.0,0.00023179,2]
[378146493,1754748643683,-300.0,0.00023179,2]
[378146495,1754748643692,-300.0,0.00023179,2]
[378146496,1754748643701,-300.0,0.00023179,2]
[378146499,1754748643710,-450.0,0.00023179,2]
[378146501,1754748643719,-151.0,0.00023186,7]
[378146503,1754748643729,-151.0,0.00023186,7]
[378146505,1754748643739,-151.0,0.00023186,7]
[378146507,1754748643749,-151.0,0.00023186,7]
[378146509,1754748643758,-151.0,0.00023186,7]
[378146511,1754748643768,-151.0,0.00023186,7]
[378146513,1754748643778,-151.0,0.00023186,7]
[378146515,1754748643787,-151.0,0.00023186,7]
[378146517,1754748643797,-8844.65873775,0.000232,2]
[378146693,1754748645585,-410.87650137,0.000232,2]
[378146695,1754748645597,-15394.00000997,0.000232,2]
[378146723,1754748645864,-837.90392799,0.000232,2]
[378147611,1754748693646,220.0,0.00026,120]
[378147619,1754749089680,233.82,0.0001691,2]
[378147624,1754749266044,155.53,0.00013699,2]
[378147635,1754749632157,359.04505713,0.0002301,120]
[378147666,1754749832299,-325.75,0.00018547,2]
[378147668,1754749832359,-482.047755,0.00018547,2]
[378147670,1754749832371,-233.82,0.0001864,2]
[378147672,1754749832383,-164.0,0.00018998,2]
[378147674,1754749832394,-500.0,0.00018999,2]
[378147676,1754749832406,-174.11680958,0.00018999,2]
[378147678,1754749832417,-500.0,0.00018999,2]
[378147679,1754749832428,-500.0,0.00018999,2]
[378147680,1754749832439,-500.0,0.00018999,2]
[378147681,1754749832451,-500.0,0.00018999,2]
[378147682,1754749832461,-500.0,0.00018999,2]
[378147683,1754749832472,-441.2832787,0.00018999,2]
[378147684,1754749832483,-500.0,0.00018999,2]
[378147685,1754749832494,-500.0,0.00018999,2]
[378147686,1754749832505,-500.0,0.00018999,2]
[378147687,1754749832516,-500.0,0.00018999,2]
[378147688,1754749832528,-179.78487699,0.00018999,2]
[378147689,1754749832539,-252.59378409,0.00018999,2]
[378147690,1754749832551,-213.44468843,0.00018999,2]
[378147691,1754749832562,-459.77200643,0.00018999,2]
[378147692,1754749832573,-77500.19958956,0.00019,2]
[378147693,1754749832584,-12604.93311906,0.00019,2]
[378147694,1754749832595,-49347.54349029,0.00019,2]
[378147695,1754749832606,-500.0,0.00019,2]
[378147696,1754749832618,-500.0,0.00019,2]
[378147697,1754749832629,-500.0,0.00019,2]
[378147698,1754749832640,-500.0,0.00019,2]
[378147699,1754749832650,-500.0,0.00019,2]
[378147700,1754749832661,-500.0,0.00019,2]
[378147701,1754749832672,-500.0,0.00019,2]
[378147702,1754749832683,-500.0,0.00019,2]
[378147703,1754749832694,-500.0,0.00019,2]
[378147704,1754749832705,-1000.0,0.00019548,2]
[378147705,1754749832716,-2347.93376171,0.000197,2]
[378147706,1754749832739,-4797.75365456,0.000197,2]
[378147707,1754749832753,-1358.39789319,0.000197,2]
[378147708,1754749837782,-472.91469054,0.000197,2]
[378147709,1754749837792,-349.05922641,0.000199,2]
[378147710,1754749837802,-349.05922636,0.000199,2]
[378147711,1754749837814,-349.05922636,0.000199,2]
[378147712,1754749837825,-349.05922636,0.000199,2]
[378147713,1754749837835,-512.0,0.00019963,2]
[378147714,1754749837844,-1540.36847454,0.0002,2]
[378147715,1754749837854,-9100.71213667,0.0002001,2]
[378147716,1754749837864,-888.0,0.00020048,3]
[378147717,1754749837874,-5511.0,0.000201,3]
[378147718,1754749837883,-349.05922636,0.00020144,2]
[378147719,1754749837893,-300.91,0.00020269,2]
[378147720,1754749837902,-304.58,0.00020269,2]
[378147721,1754749837911,-304.08,0.00020269,2]
[378147722,1754749837922,-553.84728294,0.00020271,2]
[378147723,1754749837932,-233.82,0.00020371,2]
[378147724,1754749837941,-300.66,0.00020371,2]
[378147725,1754749837951,-304.03,0.00020371,2]
[378147726,1754749837961,-304.77,0.00020371,2]
[378147727,1754749837970,-301.61,0.00020371,2]
[378147728,1754749837979,-300.73,0.00020371,2]
[378147729,1754749837988,-301.88,0.00020371,2]
[378147730,1754749837998,-300.0,0.00020402,2]
[378147731,1754749838007,-250.0,0.00020402,2]
[378147732,1754749838017,-300.0,0.00020402,2]
[378147733,1754749838026,-349.05922636,0.00020455,2]
[378147734,1754749838035,-301.09,0.00020474,2]
[378147735,1754749838045,-304.09,0.00020474,2]
[378147736,1754749838054,-302.39,0.00020474,2]
[378147737,1754749838064,-304.67,0.00020474,2]
[378147738,1754749838073,-301.78,0.00020474,2]
[378147739,1754749838083,-305.17,0.00020474,2]
[378147740,1754749838093,-1438.09495884,0.00020488,2]
[378147741,1754749838103,-5511.0,0.000205,5]
[378147742,1754749838112,-302.61,0.00020577,2]
[378147743,1754749838122,-500.0,0.00020588,2]
[378147744,1754749838134,-500.0,0.00020588,2]
[378147745,1754749838143,-500.0,0.00020588,2]
[378147746,1754749838152,-500.0,0.00020588,2]
[378147747,1754749838161,-149.92041693,0.00020588,2]
[378147748,1754749838174,-350.07958307,0.00020588,2]
[378147749,1754749838183,-500.0,0.00020588,2]
[378147750,1754749838192,-500.0,0.00020588,2]
[378147752,1754749838201,-324.31643114,0.00020588,2]
[378147753,1754749838211,-300.23,0.000207,2]
[378147754,1754749838220,-1482.0,0.00020743,2]
[378147756,1754749838229,-349.05922636,0.00020766,2]
[378147758,1754749838239,-389.87403946,0.00020799,2]
[378147760,1754749838250,-617.69256054,0.00020799,2]
[378147762,1754749838259,-150.0,0.000208,2]
[378147765,1754749838268,-383.32444046,0.00020964,2]
[378147767,1754749838280,-216.67555954,0.00020964,2]
[378147769,1754749838290,-403.82,0.00020964,2]
[378147771,1754749838302,-267.50444046,0.00021077,2]
[378147789,1754749838478,-81.5547859,0.00021077,2]
[378147791,1754749838487,-208.0,0.0002114,2]
[378147793,1754749838497,-349.05922636,0.00021388,2]
[378147794,1754749838506,-208.0,0.0002162,2]
[378147796,1754749838516,-349.05922636,0.00021699,2]
[378147799,1754749838527,-193.32,0.000217,2]
[378147800,1754749838536,-1000.0,0.0002172,2]
[378147803,1754749838546,-170.0,0.0002172,7]
[378147804,1754749838555,-164.54,0.00021727,2]
[378147806,1754749838564,-316.04,0.00021729,2]
[378147809,1754749838575,-1491.30447232,0.00021857,2]
[378147810,1754749838584,-150.0,0.0002198,2]
[378147812,1754749838594,-291.0,0.00022,2]
[378147814,1754749838603,-169.89994679,0.00022011,2]
[378147818,1754749838623,-888.0,0.000202,3]
[378147820,1754749838632,-179.15927957,0.00022011,2]
[378147822,1754749838641,-208.0,0.000221,2]
[378147824,1754749838651,-200.0,0.000221,7]
[378147826,1754749838660,-233.82,0.00022101,2]
[378147828,1754749838669,-263.0,0.00022164,2]
[378147830,1754749838678,-291.0,0.00022192,7]
[378147832,1754749838688,-923.52,0.00022263,2]
[378147834,1754749838697,-923.52,0.00022274,2]
[378147836,1754749838706,-923.52,0.00022286,2]
[378147838,1754749838715,-1776.0,0.00022288,3]
[378147840,1754749838724,-923.52,0.00022298,2]
[378147841,1754749838734,-923.52,0.0002231,2]
[378147844,1754749838744,-4902.63259959,0.00022315,2]
[378147845,1754749838753,-923.52,0.00022321,2]
[378147847,1754749838762,-349.05922636,0.00022322,2]
[378147850,1754749838771,-666.0,0.00022331,3]
[378147852,1754749838781,-923.52,0.00022333,2]
[378147854,1754749838790,-923.52,0.00022345,2]
[378147856,1754749838800,-923.52,0.00022357,2]
[378147858,1754749838810,-923.52,0.00022368,2]
[378147859,1754749838819,-923.52,0.0002238,2]
[378147862,1754749838828,-923.52,0.00022392,2]
[378147864,1754749838840,-923.52,0.00022403,2]
[378147865,1754749838849,-923.52,0.00022415,2]
[378147868,1754749838859,-923.52,0.00022427,2]
[378147869,1754749838868,-923.52,0.00022439,2]
[378147872,1754749838878,-1776.0,0.0002244,3]
[378147874,1754749838887,-923.52,0.0002245,2]
[378147875,1754749838898,-266.06,0.00022451,2]
[378147877,1754749838907,-923.52,0.00022462,2]
[378147879,1754749838917,-923.52,0.00022474,2]
[378147881,1754749838926,-820.95722968,0.00022485,2]
[378147883,1754749838937,-923.52,0.00022486,2]
[378147885,1754749838946,-262.252644,0.00022562,7]
[378147887,1754749838955,-151.0,0.00022562,7]
[378147889,1754749838965,-2186.82,0.00022562,2]
[378147891,1754749838975,-150.99,0.00022562,2]
[378147893,1754749838984,-983.32,0.00022562,2]
[378147895,1754749838994,-6060.47,0.00022562,2]
[378147897,1754749839003,-3598.21,0.00022562,2]
[378147899,1754749839013,-2320.08,0.00022562,2]
[378147901,1754749839022,-1008.12,0.00022562,2]
[378147903,1754749839032,-208.0,0.0002257,2]
[378147904,1754749839042,-151.1,0.00022611,2]
[378147907,1754749839052,-349.05922636,0.00022633,2]
[378147908,1754749839061,-783.66,0.00022636,2]
[378147910,1754749839071,-169.37,0.00022646,2]
[378147913,1754749839080,-4698.13,0.00022699,2]
[378147914,1754749839092,-4902.63259956,0.00022745,2]
[378147916,1754749839102,-316.04,0.00022815,2]
[378147919,1754749839112,-512.0,0.00022823,6]
[378147920,1754749839122,-349.05922636,0.00022944,2]
[378147922,1754749839132,-820.95722968,0.00022972,2]
[378147924,1754749839142,-1180.01,0.00022995,2]
[378147926,1754749839151,-151.1,0.00022996,2]
[378147928,1754749839160,-158.0,0.00023,7]
[378147930,1754749839170,-291.0,0.00023014,7]
[378147932,1754749839179,-208.0,0.0002305,2]
[378147934,1754749839188,-200.0,0.000231,7]
[378147936,1754749839197,-262.83405022,0.000231,2]
[378147938,1754749839207,-510.97,0.00023131,2]
[378147940,1754749839217,-820.82,0.00023131,2]
[378147942,1754749839226,-267.0,0.0002317,2]
[378147944,1754749839236,-4902.63259956,0.00023175,2]
[378147946,1754749839246,-151.0,0.00023179,7]
[378147948,1754749839255,-305.38,0.00023179,2]
[378147950,1754749839265,-160.0,0.00023179,2]
[378147952,1754749839274,-500.0,0.00023179,2]
[378147954,1754749839283,-500.0,0.00023179,2]
[378147956,1754749839293,-401.19111454,0.00023179,2]
[378147958,1754749839306,-500.0,0.00023179,2]
[378147960,1754749839316,-2464.36110303,0.00023179,2]
[378147962,1754749839326,-500.0,0.00023179,2]
[378147964,1754749839336,-500.0,0.00023179,2]
[378147966,1754749839346,-500.0,0.00023179,2]
[378147968,1754749839355,-500.0,0.00023179,2]
[378147970,1754749839366,-500.0,0.00023179,2]
[378147972,1754749839376,-500.0,0.00023179,2]
[378147974,1754749839385,-500.0,0.00023179,2]
[378147976,1754749839394,-500.0,0.00023179,2]
[378147978,1754749839403,-500.0,0.00023179,2]
[378147980,1754749839413,-167.64016421,0.00023179,2]
[378147982,1754749839422,-500.0,0.00023179,2]
[378147984,1754749839432,-500.0,0.00023179,2]
[378147986,1754749839441,-500.0,0.00023179,2]
[378147988,1754749839451,-151.0,0.00023179,2]
[378147990,1754749839460,-500.0,0.00023179,2]
[378147992,1754749839470,-500.0,0.00023179,2]
[378147994,1754749839479,-500.0,0.00023179,2]
[378147996,1754749839488,-500.0,0.00023179,2]
[378147998,1754749839500,-500.0,0.00023179,2]
[378148000,1754749839510,-500.0,0.00023179,2]
[378148001,1754749839519,-500.0,0.00023179,2]
[378148003,1754749839528,-500.0,0.00023179,2]
[378148005,1754749839538,-239.84119403,0.00023179,2]
[378148008,1754749839548,-234.88108967,0.00023179,2]
[378148010,1754749839557,-155.189606,0.00023186,7]
[378148012,1754749839567,-202.704113,0.00023186,7]
[378148014,1754749839577,-202.704113,0.00023186,7]
[378148015,1754749839586,-151.0,0.00023186,7]
[378148017,1754749839595,-151.0,0.00023186,7]
[378148020,1754749839604,-151.0,0.00023186,7]
[378148023,1754749839614,-26852.36020131,0.000232,2]
[378148026,1754749839625,-151.0,0.000232,7]
[378148029,1754749839635,-151.0,0.000232,7]
[378148032,1754749839644,-151.0,0.000232,7]